[Event "January 9 Early 2024"]
[Site "https://www.chess.com"]
[Date "2024.01.11"]
[Round "7"]
[White "Saim, Mohamed Ilias"]
[Black "Kornyukov, Alexey"]
[Result "1-0"]
[Board "201"]
[TimeControl "180+1"]
[WhiteFideId "7900465"]
[BlackFideId "4150457"]
[WhiteElo "2111"]
[BlackElo "2252"]
[WhiteTeam "ALG"]
[BlackTeam "RUS"]
[WhiteClock "0:00:06"]
[BlackClock "0:00:05"]

1. d4 {[%clk 0:03:00]}  Nf6 {[%clk 0:02:56]} 2. Bg5 {[%clk 0:03:00]}  d5 {[%clk 0:02:55]} 3. Bxf6 {[%clk 0:03:00]}  exf6 {[%clk 0:02:54]} 4. e3 {[%clk 0:03:01]}  Bd6 {[%clk 0:02:53]} 5. g3 {[%clk 0:03:01]}  O-O {[%clk 0:02:54]} 6. Bg2 {[%clk 0:03:01]}  c6 {[%clk 0:02:48]} 7. Nd2 {[%clk 0:03:00]}  Qb6 {[%clk 0:02:44]} 8. Qc1 {[%clk 0:02:51]}  Bf5 {[%clk 0:02:42]} 9. Ne2 {[%clk 0:02:46]}  Na6 {[%clk 0:02:38]} 10. a3 {[%clk 0:02:44]}  c5 {[%clk 0:02:37]} 11. Bxd5 {[%clk 0:02:39]}  Rfe8 {[%clk 0:02:14]} 12. Nc4 {[%clk 0:02:34]}  Qc7 {[%clk 0:02:06]} 13. Nxd6 {[%clk 0:02:31]}  Qxd6 {[%clk 0:02:04]} 14. c4 {[%clk 0:01:50]}  Nc7 {[%clk 0:01:46]} 15. Bxb7 {[%clk 0:01:36]}  cxd4 {[%clk 0:01:41]} 16. Bf3 {[%clk 0:01:36]}  dxe3 {[%clk 0:01:18]} 17. fxe3 {[%clk 0:01:24]}  Be4 {[%clk 0:01:08]} 18. O-O {[%clk 0:01:17]}  Bxf3 {[%clk 0:01:06]} 19. Rxf3 {[%clk 0:01:18]}  Qd3 {[%clk 0:01:04]} 20. Nf4 {[%clk 0:01:15]}  Qe4 {[%clk 0:00:50]} 21. Qf1 {[%clk 0:01:08]}  Rab8 {[%clk 0:00:43]} 22. b4 {[%clk 0:01:06]}  Ne6 {[%clk 0:00:43]} 23. Nd5 {[%clk 0:00:52]}  Ng5 {[%clk 0:00:40]} 24. Rxf6 {[%clk 0:00:46]}  Qg4 {[%clk 0:00:19]} 25. Rf4 {[%clk 0:00:37]}  Nh3+ {[%clk 0:00:19]} 26. Kh1 {[%clk 0:00:26]}  Nxf4 {[%clk 0:00:20]} 27. Qxf4 {[%clk 0:00:18]}  Qxf4 {[%clk 0:00:19]} 28. gxf4 {[%clk 0:00:18]}  Re4 {[%clk 0:00:18]} 29. Rc1 {[%clk 0:00:16]}  Rc8 {[%clk 0:00:17]} 30. c5 {[%clk 0:00:15]}  Rd8 {[%clk 0:00:17]} 31. c6 {[%clk 0:00:09]}  g6 {[%clk 0:00:14]} 32. c7 {[%clk 0:00:09]}  Rc8 {[%clk 0:00:14]} 33. Kg2 {[%clk 0:00:09]}  Kg7 {[%clk 0:00:13]} 34. Kf3 {[%clk 0:00:09]}  Re6 {[%clk 0:00:13]} 35. e4 {[%clk 0:00:09]}  f5 {[%clk 0:00:12]} 36. e5 {[%clk 0:00:08]}  Kf7 {[%clk 0:00:11]} 37. Ke3 {[%clk 0:00:07]}  Ra6 {[%clk 0:00:11]} 38. Rc3 {[%clk 0:00:06]}  Ke6 {[%clk 0:00:11]} 39. Kd4 {[%clk 0:00:06]}  Kd7 {[%clk 0:00:11]} 40. Nf6+ {[%clk 0:00:06]}  Ke6 {[%clk 0:00:10]} 41. b5 {[%clk 0:00:05]}  Rb6 {[%clk 0:00:10]} 42. Nd5 {[%clk 0:00:05]}  Rxb5 {[%clk 0:00:09]} 43. Rc6+ {[%clk 0:00:06]}  Kf7 {[%clk 0:00:08]} 44. Rd6 {[%clk 0:00:05]}  Rb7 {[%clk 0:00:07]} 45. Rd7+ {[%clk 0:00:05]}  Ke8 {[%clk 0:00:06]} 46. Re7+ {[%clk 0:00:05]}  Kf8 {[%clk 0:00:07]} 47. Rxh7 {[%clk 0:00:04]}  Kg8 {[%clk 0:00:05]} 48. Rd7 {[%clk 0:00:04]}  Kf8 {[%clk 0:00:05]} 49. e6 {[%clk 0:00:05]}  Ke8 {[%clk 0:00:05]} 50. Nf6+ {[%clk 0:00:05]}  Kf8 {[%clk 0:00:05]} 51. Rf7# {[%clk 0:00:06]} 1-0

[Event "January 9 Early 2024"]
[Site "https://www.chess.com"]
[Date "2024.01.11"]
[Round "7"]
[White "Mena, Martin"]
[Black "Teillet, Benoit"]
[Result "0-1"]
[Board "202"]
[TimeControl "180+1"]
[WhiteFideId "10651225"]
[BlackFideId "616591"]
[WhiteElo "2078"]
[BlackElo "2262"]
[WhiteTeam "EGY"]
[BlackTeam "FRA"]
[WhiteClock "0:00:04"]
[BlackClock "0:00:11"]

1. c4 {[%clk 0:03:00]}  d6 {[%clk 0:02:59]} 2. g3 {[%clk 0:02:57]}  Nf6 {[%clk 0:02:59]} 3. Bg2 {[%clk 0:02:57]}  g6 {[%clk 0:03:00]} 4. Nc3 {[%clk 0:02:58]}  Bg7 {[%clk 0:03:00]} 5. d3 {[%clk 0:02:58]}  O-O {[%clk 0:03:00]} 6. Bg5 {[%clk 0:02:59]}  c6 {[%clk 0:03:00]} 7. Qd2 {[%clk 0:02:59]}  Nbd7 {[%clk 0:03:00]} 8. e4 {[%clk 0:02:59]}  e5 {[%clk 0:02:59]} 9. Nge2 {[%clk 0:02:58]}  Re8 {[%clk 0:02:34]} 10. O-O {[%clk 0:02:57]}  Nf8 {[%clk 0:02:28]} 11. h3 {[%clk 0:02:40]}  Ne6 {[%clk 0:02:24]} 12. Bh6 {[%clk 0:02:38]}  Bh8 {[%clk 0:02:24]} 13. f4 {[%clk 0:02:27]}  exf4 {[%clk 0:02:19]} 14. gxf4 {[%clk 0:02:06]}  Nh5 {[%clk 0:02:01]} 15. f5 {[%clk 0:01:32]}  Nd4 {[%clk 0:01:57]} 16. Bg5 {[%clk 0:01:13]}  Qb6 {[%clk 0:01:44]} 17. Be3 {[%clk 0:00:32]}  Nxe2+ {[%clk 0:01:34]} 18. Qxe2 {[%clk 0:00:31]}  Bd4 {[%clk 0:01:32]} 19. Bxd4 {[%clk 0:00:13]}  Qxd4+ {[%clk 0:01:32]} 20. Qf2 {[%clk 0:00:11]}  Qxf2+ {[%clk 0:01:24]} 21. Rxf2 {[%clk 0:00:10]}  gxf5 {[%clk 0:01:22]} 22. exf5 {[%clk 0:00:11]}  f6 {[%clk 0:00:58]} 23. Ne4 {[%clk 0:00:06]}  d5 {[%clk 0:00:45]} 24. cxd5 {[%clk 0:00:05]}  cxd5 {[%clk 0:00:46]} 25. Nd6 {[%clk 0:00:05]}  Re5 {[%clk 0:00:43]} 26. Nb5 {[%clk 0:00:03]}  Bxf5 {[%clk 0:00:36]} 27. d4 {[%clk 0:00:02]}  Re3 {[%clk 0:00:19]} 28. Rxf5 {[%clk 0:00:02]}  Ng3 {[%clk 0:00:16]} 29. Bxd5+ {[%clk 0:00:02]}  Kg7 {[%clk 0:00:16]} 30. Rxf6 {[%clk 0:00:02]}  Kxf6 {[%clk 0:00:16]} 31. Kf2 {[%clk 0:00:02]}  Nf5 {[%clk 0:00:15]} 32. Bf3 {[%clk 0:00:02]}  Rae8 {[%clk 0:00:15]} 33. Rc1 {[%clk 0:00:02]}  Nxd4 {[%clk 0:00:15]} 34. Nxd4 {[%clk 0:00:02]}  Rd3 {[%clk 0:00:13]} 35. Ne2 {[%clk 0:00:02]}  Rd2 {[%clk 0:00:13]} 36. Rc3 {[%clk 0:00:01]}  Rxb2 {[%clk 0:00:12]} 37. Rb3 {[%clk 0:00:02]}  Rxa2 {[%clk 0:00:12]} 38. Rxb7 {[%clk 0:00:02]}  a5 {[%clk 0:00:12]} 39. Ra7 {[%clk 0:00:01]}  Re6 {[%clk 0:00:12]} 40. Ra6 {[%clk 0:00:02]}  a4 {[%clk 0:00:12]} 41. Rxe6+ {[%clk 0:00:02]}  Kxe6 {[%clk 0:00:12]} 42. Ke3 {[%clk 0:00:03]}  a3 {[%clk 0:00:12]} 43. Nd4+ {[%clk 0:00:03]}  Ke5 {[%clk 0:00:11]} 44. Ne2 {[%clk 0:00:02]}  Rxe2+ {[%clk 0:00:09]} 45. Bxe2 {[%clk 0:00:02]}  a2 {[%clk 0:00:10]} 46. Bd3 {[%clk 0:00:02]}  a1=Q {[%clk 0:00:10]} 47. Bxh7 {[%clk 0:00:03]}  Qd4+ {[%clk 0:00:10]} 48. Kf3 {[%clk 0:00:03]}  Qh4 {[%clk 0:00:11]} 49. Kg2 {[%clk 0:00:02]}  Qxh7 {[%clk 0:00:11]} 50. Kh2 {[%clk 0:00:02]}  Kf4 {[%clk 0:00:11]} 51. Kg2 {[%clk 0:00:02]}  Qg7+ {[%clk 0:00:11]} 52. Kh2 {[%clk 0:00:03]}  Kf3 {[%clk 0:00:11]} 53. Kh1 {[%clk 0:00:04]}  Qg2# {[%clk 0:00:11]} 0-1

[Event "January 9 Early 2024"]
[Site "https://www.chess.com"]
[Date "2024.01.11"]
[Round "7"]
[White "Javakhadze, Zurab"]
[Black "Pakleza, Zbigniew"]
[Result "0-1"]
[Board "203"]
[TimeControl "180+1"]
[WhiteFideId "13603647"]
[BlackFideId "1119290"]
[WhiteElo "2689"]
[BlackElo "2870"]
[WhiteTeam "GEO"]
[BlackTeam "POL"]
[WhiteClock "0:00:01"]
[BlackClock "0:00:06"]

1. Nf3 {[%clk 0:03:00]}  d5 {[%clk 0:03:00]} 2. g3 {[%clk 0:03:01]}  Nf6 {[%clk 0:03:00]} 3. Bg2 {[%clk 0:03:01]}  Bf5 {[%clk 0:03:00]} 4. O-O {[%clk 0:03:01]}  e6 {[%clk 0:03:00]} 5. d3 {[%clk 0:03:01]}  Be7 {[%clk 0:03:00]} 6. c4 {[%clk 0:03:01]}  c6 {[%clk 0:03:01]} 7. Be3 {[%clk 0:02:59]}  dxc4 {[%clk 0:03:00]} 8. dxc4 {[%clk 0:02:59]}  Qxd1 {[%clk 0:03:01]} 9. Rxd1 {[%clk 0:03:00]}  Nbd7 {[%clk 0:03:02]} 10. Nc3 {[%clk 0:02:59]}  a5 {[%clk 0:03:00]} 11. Nd4 {[%clk 0:02:42]}  Bg6 {[%clk 0:02:59]} 12. Nxc6 {[%clk 0:02:21]}  bxc6 {[%clk 0:02:59]} 13. Bxc6 {[%clk 0:02:22]}  Rc8 {[%clk 0:02:52]} 14. Bb5 {[%clk 0:02:18]}  Bb4 {[%clk 0:02:45]} 15. Bg5 {[%clk 0:01:40]}  O-O {[%clk 0:02:12]} 16. Bxd7 {[%clk 0:01:32]}  Nxd7 {[%clk 0:02:13]} 17. Rxd7 {[%clk 0:01:32]}  Bxc3 {[%clk 0:02:06]} 18. bxc3 {[%clk 0:01:31]}  Rxc4 {[%clk 0:02:06]} 19. Bd2 {[%clk 0:01:25]}  Rb8 {[%clk 0:01:58]} 20. f3 {[%clk 0:01:23]}  h5 {[%clk 0:01:50]} 21. Kf2 {[%clk 0:01:20]}  Rb2 {[%clk 0:01:45]} 22. e4 {[%clk 0:01:03]}  f6 {[%clk 0:01:28]} 23. Ke3 {[%clk 0:01:00]}  Ra4 {[%clk 0:01:21]} 24. Ra7 {[%clk 0:00:20]}  e5 {[%clk 0:01:15]} 25. Ra8+ {[%clk 0:00:19]}  Kh7 {[%clk 0:01:14]} 26. Ra7 {[%clk 0:00:19]}  Be8 {[%clk 0:01:05]} 27. h4 {[%clk 0:00:19]}  Raxa2 {[%clk 0:00:53]} 28. Rxa2 {[%clk 0:00:18]}  Rxa2 {[%clk 0:00:54]} 29. c4 {[%clk 0:00:18]}  a4 {[%clk 0:00:53]} 30. Ra8 {[%clk 0:00:17]}  Ra3+ {[%clk 0:00:44]} 31. Kf2 {[%clk 0:00:17]}  Bf7 {[%clk 0:00:45]} 32. c5 {[%clk 0:00:16]}  Bb3 {[%clk 0:00:43]} 33. c6 {[%clk 0:00:12]}  Ra2 {[%clk 0:00:44]} 34. c7 {[%clk 0:00:08]}  Rxd2+ {[%clk 0:00:39]} 35. Ke3 {[%clk 0:00:08]}  Rc2 {[%clk 0:00:39]} 36. c8=Q {[%clk 0:00:08]}  Rxc8 {[%clk 0:00:40]} 37. Rxc8 {[%clk 0:00:08]}  a3 {[%clk 0:00:41]} 38. Ra8 {[%clk 0:00:08]}  a2 {[%clk 0:00:40]} 39. f4 {[%clk 0:00:07]}  Kg6 {[%clk 0:00:27]} 40. Ra6 {[%clk 0:00:07]}  Kf7 {[%clk 0:00:25]} 41. Kd3 {[%clk 0:00:03]}  Ke7 {[%clk 0:00:20]} 42. Kc3 {[%clk 0:00:03]}  Be6 {[%clk 0:00:19]} 43. Kb2 {[%clk 0:00:03]}  exf4 {[%clk 0:00:16]} 44. gxf4 {[%clk 0:00:03]}  g5 {[%clk 0:00:16]} 45. fxg5 {[%clk 0:00:02]}  fxg5 {[%clk 0:00:17]} 46. hxg5 {[%clk 0:00:03]}  h4 {[%clk 0:00:18]} 47. Ra8 {[%clk 0:00:02]}  h3 {[%clk 0:00:14]} 48. Rh8 {[%clk 0:00:03]}  Kf7 {[%clk 0:00:14]} 49. Rh6 {[%clk 0:00:03]}  Bc4 {[%clk 0:00:13]} 50. Ka1 {[%clk 0:00:03]}  Kg7 {[%clk 0:00:13]} 51. e5 {[%clk 0:00:02]}  Bf1 {[%clk 0:00:11]} 52. e6 {[%clk 0:00:02]}  Bc4 {[%clk 0:00:09]} 53. Kb2 {[%clk 0:00:01]}  Kf8 {[%clk 0:00:06]} 0-1

[Event "January 9 Early 2024"]
[Site "https://www.chess.com"]
[Date "2024.01.11"]
[Round "7"]
[White "Martin Fuentes, Alberto"]
[Black "Perossa, Nicolas"]
[Result "0-1"]
[Board "207"]
[TimeControl "180+1"]
[WhiteFideId "2292289"]
[BlackFideId "2850520"]
[WhiteElo "2610"]
[BlackElo "2462"]
[WhiteTeam "ESP"]
[BlackTeam "ITA"]
[WhiteClock "0:00:05"]
[BlackClock "0:00:02"]

1. e4 {[%clk 0:02:56]}  d6 {[%clk 0:03:00]} 2. Nc3 {[%clk 0:02:56]}  c5 {[%clk 0:02:57]} 3. d3 {[%clk 0:02:55]}  Nc6 {[%clk 0:02:58]} 4. g3 {[%clk 0:02:56]}  e6 {[%clk 0:02:58]} 5. Bg2 {[%clk 0:02:56]}  Nge7 {[%clk 0:02:58]} 6. Be3 {[%clk 0:02:56]}  b6 {[%clk 0:02:55]} 7. Qd2 {[%clk 0:02:55]}  Bb7 {[%clk 0:02:56]} 8. Nge2 {[%clk 0:02:55]}  g6 {[%clk 0:02:54]} 9. Bh6 {[%clk 0:02:46]}  Qd7 {[%clk 0:02:44]} 10. Bxf8 {[%clk 0:02:46]}  Rxf8 {[%clk 0:02:43]} 11. Qh6 {[%clk 0:02:45]}  O-O-O {[%clk 0:02:42]} 12. Qxh7 {[%clk 0:02:39]}  Ne5 {[%clk 0:02:06]} 13. Qh6 {[%clk 0:02:26]}  f5 {[%clk 0:02:04]} 14. Qd2 {[%clk 0:02:21]}  fxe4 {[%clk 0:02:00]} 15. dxe4 {[%clk 0:02:22]}  Nf3+ {[%clk 0:01:48]} 16. Bxf3 {[%clk 0:02:21]}  Rxf3 {[%clk 0:01:49]} 17. Ng1 {[%clk 0:01:58]}  Rf7 {[%clk 0:01:49]} 18. f4 {[%clk 0:01:58]}  d5 {[%clk 0:01:25]} 19. Nf3 {[%clk 0:01:55]}  d4 {[%clk 0:00:49]} 20. Ne2 {[%clk 0:01:45]}  Qc6 {[%clk 0:00:23]} 21. Ng5 {[%clk 0:01:43]}  Rf6 {[%clk 0:00:11]} 22. O-O-O {[%clk 0:01:41]}  Qa4 {[%clk 0:00:10]} 23. Kb1 {[%clk 0:01:38]}  Nc6 {[%clk 0:00:09]} 24. Nc1 {[%clk 0:01:31]}  e5 {[%clk 0:00:08]} 25. Rhf1 {[%clk 0:01:27]}  c4 {[%clk 0:00:08]} 26. Qe2 {[%clk 0:01:14]}  c3 {[%clk 0:00:05]} 27. fxe5 {[%clk 0:01:06]}  Ba6 {[%clk 0:00:04]} 28. Rd3 {[%clk 0:00:44]}  Rxf1 {[%clk 0:00:04]} 29. Qxf1 {[%clk 0:00:43]}  cxb2 {[%clk 0:00:03]} 30. Kxb2 {[%clk 0:00:32]}  Nb4 {[%clk 0:00:03]} 31. Qe2 {[%clk 0:00:22]}  Nxd3+ {[%clk 0:00:03]} 32. cxd3 {[%clk 0:00:22]}  Qb4+ {[%clk 0:00:03]} 33. Nb3 {[%clk 0:00:21]}  Qc3+ {[%clk 0:00:04]} 34. Ka3 {[%clk 0:00:20]}  Bxd3 {[%clk 0:00:05]} 35. Qd2 {[%clk 0:00:14]}  Qxd2 {[%clk 0:00:04]} 36. Nxd2 {[%clk 0:00:15]}  Be2 {[%clk 0:00:04]} 37. e6 {[%clk 0:00:14]}  d3 {[%clk 0:00:04]} 38. Kb4 {[%clk 0:00:14]}  Kc7 {[%clk 0:00:04]} 39. Nf7 {[%clk 0:00:13]}  Re8 {[%clk 0:00:04]} 40. Ng5 {[%clk 0:00:13]}  Kd6 {[%clk 0:00:04]} 41. Kc4 {[%clk 0:00:13]}  Ke7 {[%clk 0:00:04]} 42. Kd4 {[%clk 0:00:13]}  Rd8+ {[%clk 0:00:04]} 43. Ke3 {[%clk 0:00:12]}  Rc8 {[%clk 0:00:05]} 44. h4 {[%clk 0:00:10]}  Rc2 {[%clk 0:00:03]} 45. Nb3 {[%clk 0:00:10]}  Rxa2 {[%clk 0:00:03]} 46. Nd4 {[%clk 0:00:10]}  Bf1 {[%clk 0:00:03]} 47. Nc6+ {[%clk 0:00:09]}  Ke8 {[%clk 0:00:03]} 48. Nh7 {[%clk 0:00:08]}  d2 {[%clk 0:00:03]} 49. Nf6+ {[%clk 0:00:08]}  Kf8 {[%clk 0:00:03]} 50. e7+ {[%clk 0:00:09]}  Kg7 {[%clk 0:00:04]} 51. e8=Q {[%clk 0:00:05]}  d1=Q {[%clk 0:00:02]} 0-1

[Event "January 9 Early 2024"]
[Site "https://www.chess.com"]
[Date "2024.01.11"]
[Round "7"]
[White "Perez Gormaz, Matias"]
[Black "Osinovsky, Stepan"]
[Result "0-1"]
[Board "208"]
[TimeControl "180+1"]
[WhiteFideId "3406342"]
[BlackFideId "4157354"]
[WhiteElo "2641"]
[BlackElo "2412"]
[WhiteTeam "CHI"]
[BlackTeam "RUS"]
[WhiteClock "0:00:01"]
[BlackClock "0:00:05"]

1. d4 {[%clk 0:03:00]}  Nf6 {[%clk 0:02:59]} 2. Bf4 {[%clk 0:03:00]}  g6 {[%clk 0:02:57]} 3. e3 {[%clk 0:03:00]}  Bg7 {[%clk 0:02:57]} 4. Nf3 {[%clk 0:03:01]}  O-O {[%clk 0:02:57]} 5. h3 {[%clk 0:03:01]}  d6 {[%clk 0:02:58]} 6. Be2 {[%clk 0:03:01]}  Nbd7 {[%clk 0:02:57]} 7. O-O {[%clk 0:03:00]}  b6 {[%clk 0:02:57]} 8. Bh2 {[%clk 0:02:57]}  Bb7 {[%clk 0:02:57]} 9. c4 {[%clk 0:02:57]}  Ne4 {[%clk 0:02:50]} 10. Nfd2 {[%clk 0:02:56]}  Nxd2 {[%clk 0:02:41]} 11. Qxd2 {[%clk 0:02:56]}  e5 {[%clk 0:02:42]} 12. Nc3 {[%clk 0:02:55]}  exd4 {[%clk 0:02:27]} 13. exd4 {[%clk 0:02:55]}  Nf6 {[%clk 0:02:28]} 14. Bd3 {[%clk 0:02:52]}  Re8 {[%clk 0:02:26]} 15. Rfe1 {[%clk 0:02:52]}  Qd7 {[%clk 0:02:26]} 16. d5 {[%clk 0:02:44]}  Rxe1+ {[%clk 0:02:25]} 17. Rxe1 {[%clk 0:02:44]}  Re8 {[%clk 0:02:18]} 18. Rxe8+ {[%clk 0:02:42]}  Qxe8 {[%clk 0:02:17]} 19. Nb5 {[%clk 0:02:40]}  Qb8 {[%clk 0:02:14]} 20. Qe2 {[%clk 0:02:36]}  a6 {[%clk 0:02:14]} 21. Nc3 {[%clk 0:02:36]}  Qe8 {[%clk 0:02:12]} 22. Qd2 {[%clk 0:02:32]}  Nd7 {[%clk 0:02:10]} 23. Bf4 {[%clk 0:02:28]}  Nc5 {[%clk 0:02:02]} 24. Bc2 {[%clk 0:02:28]}  Bc8 {[%clk 0:01:59]} 25. b4 {[%clk 0:02:25]}  Nd7 {[%clk 0:01:58]} 26. Ba4 {[%clk 0:02:17]}  Qe7 {[%clk 0:01:52]} 27. Bd1 {[%clk 0:01:58]}  h5 {[%clk 0:01:37]} 28. Be3 {[%clk 0:01:58]}  Nf6 {[%clk 0:01:32]} 29. Bc2 {[%clk 0:01:44]}  Nd7 {[%clk 0:01:31]} 30. Bd3 {[%clk 0:01:33]}  Qe5 {[%clk 0:01:27]} 31. Ne2 {[%clk 0:01:27]}  Qa1+ {[%clk 0:01:26]} 32. Kh2 {[%clk 0:01:16]}  Ne5 {[%clk 0:01:22]} 33. c5 {[%clk 0:01:03]}  Nxd3 {[%clk 0:01:15]} 34. Qxd3 {[%clk 0:01:03]}  bxc5 {[%clk 0:01:14]} 35. bxc5 {[%clk 0:01:04]}  Qxa2 {[%clk 0:01:14]} 36. Qe4 {[%clk 0:00:30]}  Be5+ {[%clk 0:00:29]} 37. Bf4 {[%clk 0:00:30]}  Bf5 {[%clk 0:00:23]} 38. Qf3 {[%clk 0:00:27]}  Qb2 {[%clk 0:00:18]} 39. g4 {[%clk 0:00:22]}  hxg4 {[%clk 0:00:16]} 40. hxg4 {[%clk 0:00:23]}  Bb1 {[%clk 0:00:14]} 41. Ng3 {[%clk 0:00:11]}  dxc5 {[%clk 0:00:11]} 42. Bxe5 {[%clk 0:00:09]}  Qxe5 {[%clk 0:00:11]} 43. Kg1 {[%clk 0:00:09]}  a5 {[%clk 0:00:10]} 44. Qb3 {[%clk 0:00:07]}  Qe1+ {[%clk 0:00:10]} 45. Kg2 {[%clk 0:00:05]}  Be4+ {[%clk 0:00:09]} 46. Kh3 {[%clk 0:00:04]}  a4 {[%clk 0:00:06]} 47. Qxa4 {[%clk 0:00:03]}  Bxd5 {[%clk 0:00:05]} 48. Qa5 {[%clk 0:00:01]}  Qe5 {[%clk 0:00:05]} 49. Qxc5 {[%clk 0:00:01]}  Bg2+ {[%clk 0:00:04]} 50. Kxg2 {[%clk 0:00:01]}  Qxc5 {[%clk 0:00:05]} 0-1

[Event "January 9 Early 2024"]
[Site "https://www.chess.com"]
[Date "2024.01.11"]
[Round "7"]
[White "Bjerre, Jonas Buhl"]
[Black "Vachier-Lagrave, Maxime"]
[Result "0-1"]
[Board "210"]
[TimeControl "180+1"]
[WhiteFideId "1444948"]
[BlackFideId "623539"]
[WhiteElo "2966"]
[BlackElo "3177"]
[WhiteTeam "DEN"]
[BlackTeam "FRA"]
[WhiteClock "0:00:03"]
[BlackClock "0:00:13"]

1. e4 {[%clk 0:03:00]}  c5 {[%clk 0:02:59]} 2. Nf3 {[%clk 0:03:01]}  d6 {[%clk 0:03:00]} 3. Bb5+ {[%clk 0:02:59]}  Bd7 {[%clk 0:03:00]} 4. Bxd7+ {[%clk 0:02:54]}  Qxd7 {[%clk 0:03:01]} 5. O-O {[%clk 0:02:54]}  Nc6 {[%clk 0:03:02]} 6. c4 {[%clk 0:02:54]}  Nf6 {[%clk 0:03:01]} 7. Nc3 {[%clk 0:02:53]}  g6 {[%clk 0:03:02]} 8. d4 {[%clk 0:02:53]}  cxd4 {[%clk 0:03:03]} 9. Nxd4 {[%clk 0:02:53]}  Bg7 {[%clk 0:03:04]} 10. h3 {[%clk 0:02:52]}  O-O {[%clk 0:03:01]} 11. Be3 {[%clk 0:02:51]}  a6 {[%clk 0:02:38]} 12. Rc1 {[%clk 0:02:48]}  Rfc8 {[%clk 0:02:36]} 13. Na4 {[%clk 0:02:35]}  Qd8 {[%clk 0:02:31]} 14. Nxc6 {[%clk 0:02:16]}  Rxc6 {[%clk 0:02:32]} 15. Qd3 {[%clk 0:02:14]}  Rac8 {[%clk 0:02:20]} 16. b3 {[%clk 0:02:15]}  Nd7 {[%clk 0:02:14]} 17. Rfd1 {[%clk 0:02:13]}  Qa5 {[%clk 0:01:58]} 18. Bd2 {[%clk 0:02:02]}  Qh5 {[%clk 0:01:57]} 19. Nc3 {[%clk 0:01:51]}  Bxc3 {[%clk 0:01:45]} 20. Bxc3 {[%clk 0:01:47]}  b5 {[%clk 0:01:45]} 21. Qd4 {[%clk 0:01:21]}  e5 {[%clk 0:01:43]} 22. Qe3 {[%clk 0:01:14]}  bxc4 {[%clk 0:01:42]} 23. bxc4 {[%clk 0:01:13]}  Nb6 {[%clk 0:01:41]} 24. c5 {[%clk 0:00:33]}  Nc4 {[%clk 0:01:41]} 25. Qe1 {[%clk 0:00:30]}  Rxc5 {[%clk 0:01:41]} 26. Bb4 {[%clk 0:00:28]}  R5c6 {[%clk 0:01:41]} 27. Rd3 {[%clk 0:00:23]}  a5 {[%clk 0:01:35]} 28. Ba3 {[%clk 0:00:19]}  Qg5 {[%clk 0:01:29]} 29. Rdc3 {[%clk 0:00:19]}  Qe7 {[%clk 0:00:57]} 30. Qe2 {[%clk 0:00:19]}  Qe6 {[%clk 0:00:57]} 31. Bxd6 {[%clk 0:00:19]}  Rxd6 {[%clk 0:00:56]} 32. Rxc4 {[%clk 0:00:20]}  Rcd8 {[%clk 0:00:56]} 33. R4c2 {[%clk 0:00:17]}  h5 {[%clk 0:00:55]} 34. h4 {[%clk 0:00:17]}  Kg7 {[%clk 0:00:53]} 35. g3 {[%clk 0:00:17]}  Qh3 {[%clk 0:00:46]} 36. Qf1 {[%clk 0:00:15]}  Qg4 {[%clk 0:00:40]} 37. Qe2 {[%clk 0:00:16]}  Qh3 {[%clk 0:00:41]} 38. Qf1 {[%clk 0:00:16]}  Qd7 {[%clk 0:00:41]} 39. Kg2 {[%clk 0:00:15]}  Qb7 {[%clk 0:00:34]} 40. Re2 {[%clk 0:00:13]}  Rd4 {[%clk 0:00:28]} 41. Rb1 {[%clk 0:00:13]}  Qc6 {[%clk 0:00:27]} 42. Qc1 {[%clk 0:00:12]}  Qe6 {[%clk 0:00:24]} 43. Qe3 {[%clk 0:00:11]}  Rd3 {[%clk 0:00:23]} 44. Qc5 {[%clk 0:00:12]}  a4 {[%clk 0:00:21]} 45. Rb6 {[%clk 0:00:10]}  Qg4 {[%clk 0:00:18]} 46. Qxe5+ {[%clk 0:00:09]}  Kg8 {[%clk 0:00:19]} 47. Re1 {[%clk 0:00:07]}  Qf3+ {[%clk 0:00:15]} 48. Kg1 {[%clk 0:00:08]}  Rd1 {[%clk 0:00:15]} 49. Rb1 {[%clk 0:00:08]}  R1d2 {[%clk 0:00:15]} 50. Qc5 {[%clk 0:00:07]}  Rxa2 {[%clk 0:00:15]} 51. Ra1 {[%clk 0:00:06]}  Rxa1 {[%clk 0:00:13]} 52. Rxa1 {[%clk 0:00:07]}  Rd1+ {[%clk 0:00:13]} 53. Rxd1 {[%clk 0:00:06]}  Qxd1+ {[%clk 0:00:14]} 54. Kg2 {[%clk 0:00:07]}  Qb3 {[%clk 0:00:14]} 55. Qc8+ {[%clk 0:00:05]}  Kh7 {[%clk 0:00:14]} 56. e5 {[%clk 0:00:02]}  a3 {[%clk 0:00:14]} 57. g4 {[%clk 0:00:03]}  Qe6 {[%clk 0:00:13]} 0-1